fUST/lending_fUST_20250722
["ID","MTS","AMOUNT","RATE_DAILY","PERIOD"]
[374005229,1753177843558,-1552.13,0.00019603,2]
[374005231,1753177843567,-834.77,0.00019603,2]
[374005233,1753177843576,-460.0,0.00019604,2]
[374005235,1753177843585,-910.97,0.00019604,2]
[374005237,1753177843595,-669.08,0.00019605,2]
[374005239,1753177843607,-460.0,0.00019605,2]
[374005241,1753177843616,-602.33,0.00019605,2]
[374005243,1753177843625,-2606.37,0.00019605,2]
[374005245,1753177843635,-340.0,0.00019802,2]
[374005247,1753177843644,-3301.13242443,0.00019831,2]
[374005249,1753177843654,-498.43,0.00019875,2]
[374005251,1753177843664,-1232.02,0.00019876,2]
[374005253,1753177843673,-460.35,0.00019876,2]
[374005255,1753177843683,-868.26,0.00019876,2]
[374005257,1753177843692,-460.0,0.00019876,2]
[374005259,1753177843702,-460.0,0.00019876,2]
[374005261,1753177843711,-460.0,0.00019876,2]
[374005264,1753177843723,-339.39422202,0.00019876,2]
[374005266,1753177843733,-460.0,0.00019876,2]
[374005268,1753177843742,-1392.11,0.00019876,2]
[374005270,1753177843752,-460.0,0.00019876,2]
[374005272,1753177843761,-1552.13,0.00019877,2]
[374005274,1753177843771,-834.77,0.00019877,2]
[374005276,1753177843780,-460.0,0.00019878,2]
[374005278,1753177843789,-910.97,0.00019878,2]
[374005280,1753177843800,-669.08,0.00019879,2]
[374005282,1753177843809,-460.0,0.00019879,2]
[374005284,1753177843819,-602.33,0.00019879,2]
[374005286,1753177843828,-2606.37,0.00019879,2]
[374005288,1753177843837,-151.0,0.0002,2]
[374005290,1753177843846,-151.0,0.0002,2]
[374005292,1753177843856,-151.0,0.0002,2]
[374005294,1753177843865,-3301.13242443,0.00020107,2]
[374005296,1753177843875,-587.0,0.0002012,2]
[374005298,1753177843885,-498.43,0.00020149,2]
[374005300,1753177843894,-1232.02,0.0002015,2]
[374005302,1753177843903,-460.35,0.0002015,2]
[374005304,1753177843913,-868.26,0.0002015,2]
[374005306,1753177843922,-460.0,0.0002015,2]
[374005308,1753177843931,-460.0,0.0002015,2]
[374005310,1753177843940,-460.0,0.0002015,2]
[374005312,1753177843950,-460.0,0.0002015,2]
[374005314,1753177843958,-460.0,0.0002015,2]
[374005316,1753177843967,-1392.11,0.0002015,2]
[374005318,1753177843977,-1552.13,0.00020151,2]
[374005320,1753177843986,-834.77,0.00020151,2]
[374005322,1753177843996,-460.0,0.00020152,2]
[374005324,1753177844006,-910.97,0.00020152,2]
[374005326,1753177844015,-669.08,0.00020153,2]
[374005328,1753177844025,-460.0,0.00020153,2]
[374005330,1753177844034,-602.33,0.00020153,2]
[374005332,1753177844043,-2606.37,0.00020153,2]
[374005334,1753177844053,-3301.13242443,0.00020383,3]
[374005336,1753177844062,-498.43,0.00020423,2]
[374005338,1753177844071,-1232.02,0.00020424,2]
[374005340,1753177844080,-460.35,0.00020424,2]
[374005342,1753177844090,-868.26,0.00020424,2]
[374005344,1753177844099,-460.0,0.00020424,2]
[374005346,1753177844110,-460.0,0.00020424,2]
[374005348,1753177844119,-460.0,0.00020424,2]
[374005350,1753177844130,-159.6644449,0.00020424,2]
[374005352,1753177844141,-460.0,0.00020424,2]
[374005354,1753177844150,-1392.11,0.00020424,2]
[374005356,1753177844160,-1552.13,0.00020425,2]
[374005358,1753177844170,-834.77,0.00020425,2]
[374005360,1753177844181,-460.0,0.00020426,2]
[374005362,1753177844190,-910.97,0.00020426,2]
[374005364,1753177844201,-669.08,0.00020427,2]
[374005366,1753177844211,-460.0,0.00020427,2]
[374005368,1753177844221,-602.33,0.00020427,2]
[374005370,1753177844231,-2606.37,0.00020427,2]
[374005372,1753177844240,-3301.13242443,0.00020659,3]
[374005374,1753177844249,-12619.94447631,0.0002066,3]
[374005376,1753177844258,-476.60259688,0.0002066,3]
[374005378,1753177844268,-160.0,0.0002066,3]
[374005380,1753177844278,-498.43,0.00020697,2]
[374005382,1753177844286,-1232.02,0.00020698,2]
[374005384,1753177844296,-460.35,0.00020698,2]
[374005386,1753177844306,-868.26,0.00020698,2]
[374005388,1753177844315,-154.65473086,0.00020698,2]
[374005390,1753177844325,-460.0,0.00020698,2]
[374005392,1753177844334,-460.0,0.00020698,2]
[374005394,1753177844344,-1392.11,0.00020698,2]
[374005396,1753177844353,-1552.13,0.00020699,2]
[374005398,1753177844364,-834.77,0.00020699,2]
[374005400,1753177844373,-460.0,0.000207,2]
[374005402,1753177844383,-910.97,0.000207,2]
[374005404,1753177844393,-669.08,0.00020701,2]
[374005407,1753177844403,-460.0,0.00020701,2]
[374005409,1753177844412,-602.33,0.00020701,2]
[374005410,1753177844422,-2606.37,0.00020701,2]
[374005413,1753177844431,-151.0,0.00020703,2]
[374005414,1753177844441,-178.80003706,0.00020712,2]
[374005417,1753177844450,-996.992,0.00020712,2]
[374005419,1753177844460,-512.46627473,0.00020821,2]
[374005421,1753177844469,-500.0,0.00020821,2]
[374005423,1753177844479,-500.0,0.0002085,2]
[374005425,1753177844488,-3301.13242443,0.00020934,4]
[374005427,1753177844498,-498.43,0.00020971,2]
[374005429,1753177844508,-1232.02,0.00020972,2]
[374005431,1753177844517,-460.35,0.00020972,2]
[374005433,1753177844527,-868.26,0.00020972,2]
[374005435,1753177844537,-460.0,0.00020972,2]
[374005437,1753177844546,-460.0,0.00020972,2]
[374005439,1753177844555,-1392.11,0.00020972,2]
[374005441,1753177844565,-1552.13,0.00020973,2]
[374005443,1753177844575,-834.77,0.00020973,2]
[374005445,1753177844584,-460.0,0.00020974,2]
[374005447,1753177844594,-910.97,0.00020974,2]
[374005449,1753177844603,-669.08,0.00020975,2]
[374005451,1753177844614,-460.0,0.00020975,2]
[374005453,1753177844623,-602.33,0.00020975,2]
[374005455,1753177844633,-2606.37,0.00020975,2]
[374005457,1753177844642,-933.96077906,0.00021011,2]
[374005459,1753177844652,-3301.13242443,0.0002121,4]
[374005461,1753177844662,-498.43,0.00021245,2]
[374005463,1753177844671,-1232.02,0.00021246,2]
[374005465,1753177844681,-460.35,0.00021246,2]
[374005467,1753177844690,-868.26,0.00021246,2]
[374005469,1753177844700,-183.91630104,0.00021246,2]
[374005471,1753177844710,-460.0,0.00021246,2]
[374005473,1753177844720,-1392.11,0.00021246,2]
[374005475,1753177844730,-1552.13,0.00021247,2]
[374005477,1753177844740,-834.77,0.00021247,2]
[374005479,1753177844750,-460.0,0.00021248,2]
[374005481,1753177844760,-910.97,0.00021248,2]
[374005484,1753177844770,-669.08,0.00021249,2]
[374005486,1753177844779,-468.13531545,0.00021249,2]
[374005488,1753177844789,-602.33,0.00021249,2]
[374005490,1753177844798,-151.0,0.00021249,2]
[374005492,1753177844808,-2606.37,0.00021249,2]
[374005494,1753177844817,-151.0,0.00021249,2]
[374005496,1753177844826,-500.0,0.00021369,2]
[374005498,1753177844836,-1000.0,0.00021398,2]
[374005500,1753177844845,-3301.13242443,0.00021486,5]
[374005502,1753177844856,-498.43,0.00021519,2]
[374005504,1753177844865,-1232.02,0.0002152,2]
[374005506,1753177844874,-460.35,0.0002152,2]
[374005508,1753177844884,-868.26,0.0002152,2]
[374005510,1753177844893,-151.0,0.0002152,2]
[374005512,1753177844903,-460.0,0.0002152,2]
[374005514,1753177844913,-151.316563,0.0002152,2]
[374005516,1753177844923,-1392.11,0.0002152,2]
[374005518,1753177844932,-1552.13,0.00021521,2]
[374005520,1753177844942,-834.77,0.00021521,2]
[374005522,1753177844951,-460.0,0.00021522,2]
[374005524,1753177844960,-910.97,0.00021522,2]
[374005526,1753177844969,-669.08,0.00021523,2]
[374005528,1753177844979,-602.33,0.00021523,2]
[374005530,1753177844989,-2606.37,0.00021523,2]
[374005532,1753177844998,-151.0,0.00021524,2]
[374005534,1753177845007,-151.0,0.00021524,2]
[374005536,1753177845017,-151.0,0.00021524,2]
[374005538,1753177845026,-3301.13242443,0.00021762,5]
[374005540,1753177845035,-498.43,0.00021793,2]
[374005542,1753177845044,-1232.02,0.00021794,2]
[374005544,1753177845054,-460.35,0.00021794,2]
[374005546,1753177845063,-151.492355,0.00021794,2]
[374005548,1753177845073,-868.26,0.00021794,2]
[374005550,1753177845082,-460.0,0.00021794,2]
[374005552,1753177845091,-1392.11,0.00021794,2]
[374005554,1753177845101,-1552.13,0.00021795,2]
[374005556,1753177845111,-834.77,0.00021795,2]
[374005558,1753177845120,-460.0,0.00021796,2]
[374005560,1753177845130,-910.97,0.00021796,2]
[374005562,1753177845143,-669.08,0.00021797,2]
[374005564,1753177845153,-602.33,0.00021797,2]
[374005566,1753177845163,-2606.37,0.00021797,2]
[374005568,1753177845174,-1322.708121,0.00021918,7]
[374005570,1753177845183,-179.58591415,0.00021918,2]
[374005572,1753177845193,-1013.36135234,0.00021946,2]
[374005574,1753177845202,-215.0738,0.00021965,2]
[374005577,1753177845214,-151.0,0.00021965,2]
[374005579,1753177845225,-823.0,0.00021979,2]
[374005581,1753177845235,-151.0,0.00022,7]
[374005583,1753177845244,-151.0,0.00022,2]
[374005585,1753177845254,-1832.7,0.00022,7]
[374005587,1753177845263,-178.0,0.00022,2]
[374005589,1753177845273,-168.0,0.00022,2]
[374005591,1753177845282,-52353.27,0.00022,2]
[374005593,1753177845291,-9195.1,0.00022,7]
[374005595,1753177845300,-4169.4,0.00022,7]
[374005597,1753177845310,-151.0,0.00022,7]
[374005599,1753177845319,-476.60259688,0.00022,7]
[374005601,1753177845329,-160.0,0.00022,7]
[374005603,1753177845338,-151.0,0.00022,7]
[374005605,1753177845348,-151.0,0.00022,7]
[374005607,1753177845358,-151.0,0.00022,7]
[374005609,1753177845367,-151.0,0.00022,7]
[374005611,1753177845376,-7899.70560672,0.00022013,2]
[374005614,1753177845386,-3301.13242443,0.00022038,6]
[374005616,1753177845396,-498.43,0.00022067,2]
[374005619,1753177845405,-1232.02,0.00022068,2]
[374005621,1753177845414,-460.35,0.00022068,2]
[374005623,1753177845424,-868.26,0.00022068,2]
[374005624,1753177845434,-460.0,0.00022068,2]
[374005626,1753177845443,-1392.11,0.00022068,2]
[374005629,1753177845453,-1552.13,0.00022069,2]
[374005630,1753177845463,-834.77,0.00022069,2]
[374005632,1753177845471,-577.17,0.0002207,2]
[374005634,1753177845481,-910.97,0.0002207,2]
[374005635,1753177845490,-669.08,0.00022071,2]
[374005637,1753177845499,-602.33,0.00022071,2]
[374005639,1753177845510,-2606.37,0.00022071,2]
[374005641,1753177845519,-154.473695,0.0002216,2]
[374005644,1753177845529,-3301.13242443,0.00022314,7]
[374005647,1753177845538,-498.43,0.00022341,2]
[374005650,1753177845548,-1232.02,0.00022342,2]
[374005653,1753177845557,-460.35,0.00022342,2]
[374005655,1753177845566,-868.26,0.00022342,2]
[374005657,1753177845576,-460.0,0.00022342,2]
[374005659,1753177845585,-1392.11,0.00022342,2]
[374005661,1753177845594,-151.0,0.00022343,7]
[374005663,1753177845604,-1552.13,0.00022343,2]
[374005665,1753177845615,-834.77,0.00022343,2]
[374005667,1753177845624,-151.0,0.00022343,7]
[374005669,1753177845633,-910.97,0.00022344,2]
[374005670,1753177845642,-669.08,0.00022345,2]
[374005672,1753177845653,-602.33,0.00022345,2]
[374005674,1753177845663,-151.0,0.00022345,7]
[374005676,1753177845672,-2606.37,0.00022345,2]
[374005678,1753177845682,-152.674708,0.00022345,7]
[374005680,1753177845692,-429.6101251,0.00022384,2]
[374005682,1753177845702,-429.6101251,0.00022384,2]
[374005684,1753177845711,-429.6101251,0.00022384,2]
[374005686,1753177845721,-429.6101251,0.00022384,2]
[374005688,1753177845730,-181.7221097,0.00022384,2]
[374005690,1753177845740,-429.6101251,0.00022384,2]
[374005692,1753177845749,-933.96077906,0.00022451,2]
[374005694,1753177845759,-2992.0,0.00022465,2]
[374005696,1753177845769,-454.11957381,0.00022538,2]
[374005709,1753177845878,-3301.13242443,0.0002259,7]
[374005711,1753177845894,-498.43,0.00022615,2]
[374005713,1753177845904,-1232.02,0.00022616,2]
[374005715,1753177845914,-460.35,0.00022616,2]
[374005717,1753177845923,-868.26,0.00022616,2]
[374005719,1753177845933,-1392.11,0.00022616,2]
[374005721,1753177845942,-151.0,0.00022617,7]
[374005723,1753177845951,-1552.13,0.00022617,2]
[374005725,1753177845961,-834.77,0.00022617,2]
[374005727,1753177845970,-910.97,0.00022618,2]
[374005729,1753177845980,-669.08,0.00022619,2]
[374005731,1753177845989,-602.33,0.00022619,2]
[374005733,1753177845998,-2606.37,0.00022619,2]
[374005735,1753177846007,-500.61,0.00022716,5]
[374005737,1753177846016,-172.0,0.0002274,8]
[374005739,1753177846025,-194.1895239,0.00022795,2]
[374005741,1753177846035,-178.204927,0.00022795,2]
[374005743,1753177846044,-577.4526085,0.00022795,2]
[374005745,1753177846054,-306.0,0.00022795,2]
[374005747,1753177846063,-153.0,0.00022795,2]
[374005749,1753177846072,-153.0000001,0.00022795,2]
[374005751,1753177846082,-178.204927,0.00022795,2]
[374005753,1753177846092,-153.3382709,0.00022795,2]
[374005755,1753177846102,-1154.905217,0.00022795,2]
[374005757,1753177846112,-178.204927,0.00022795,2]
[374005758,1753177846122,-1153.8841565,0.00022795,2]
[374005760,1753177846133,-153.0,0.00022795,2]
[374005762,1753177846144,-159.8957685,0.00022795,2]
[374005764,1753177846153,-1000.0,0.000228,2]
[374005766,1753177846162,-500.61,0.00022816,6]
[374005768,1753177846172,-3301.13242443,0.00022866,8]
[374005770,1753177846183,-800.0,0.00022872,2]
[374005772,1753177846192,-154.473695,0.0002288,3]
[374005774,1753177846201,-498.43,0.00022889,2]
[374005776,1753177846211,-1232.02,0.0002289,2]
[374005778,1753177846220,-460.35,0.0002289,2]
[374005780,1753177846229,-868.26,0.0002289,2]
[374005782,1753177846239,-1392.11,0.0002289,2]
[374005784,1753177846249,-1552.13,0.00022891,2]
[374005786,1753177846259,-834.77,0.00022891,2]
[374005788,1753177846269,-910.97,0.00022892,2]
[374005790,1753177846278,-669.08,0.00022893,2]
[374005792,1753177846288,-602.33,0.00022893,2]
[374005794,1753177846297,-2606.37,0.00022893,2]
[374005796,1753177846307,-500.61,0.00022916,7]
[374005797,1753177846316,-151.0,0.00022929,7]
[374005799,1753177846326,-151.0,0.00022929,7]
[374005801,1753177846335,-151.0,0.00022929,7]
[374005803,1753177846345,-151.0,0.00023,7]
[374005804,1753177846354,-160.0,0.00023,3]
[374005805,1753177846368,-155.735875,0.00023,7]
[374005806,1753177846377,-151.0,0.00023,7]
[374005807,1753177846386,-160.0,0.00023,3]
[374005808,1753177846395,-151.0,0.00023,7]
[374005809,1753177846405,-1740.92,0.00023,2]
[374005810,1753177846414,-160.0,0.00023,3]
[374005811,1753177846423,-215.80012421,0.00023,3]
[374005812,1753177846433,-526.07605158,0.00023,3]
[374005813,1753177846442,-231.06963584,0.00023,3]
[374005814,1753177846451,-160.0,0.00023,2]
[374005815,1753177846461,-839.90542673,0.00023,3]
[374005816,1753177846470,-151.0,0.00023014,7]
[374005817,1753177846480,-500.61,0.00023016,6]
[374005818,1753177846490,-500.61,0.00023116,5]
[374005819,1753177846500,-3301.13242443,0.00023141,8]
[374005820,1753177846510,-498.51,0.00023163,2]
[374005821,1753177846520,-1232.11,0.00023164,2]
[374005822,1753177846530,-460.39126512,0.00023164,2]
[374005823,1753177846539,-868.41,0.00023164,2]
[374005824,1753177846548,-151.0,0.00023164,7]
[374005825,1753177846558,-151.0,0.00023164,7]
[374005826,1753177846567,-1392.27,0.00023164,2]
[374005827,1753177846577,-1552.33744083,0.00023165,2]
[374005828,1753177846588,-834.95,0.00023165,2]
[374005829,1753177846598,-911.13990931,0.00023166,2]
[374005830,1753177846612,-669.18,0.00023167,2]
[374005831,1753177846624,-602.38154296,0.00023167,2]
[374005832,1753177846634,-2606.49,0.00023167,2]
[374005833,1753177846645,-1832.7,0.000232,7]
[374005834,1753177846655,-52353.27,0.000232,2]
[374005835,1753177846665,-9195.1,0.000232,7]
[374005836,1753177846675,-4169.4,0.000232,7]
[374005837,1753177846684,-151.0,0.000232,7]
[374005839,1753177846694,-151.0,0.000232,7]
[374005841,1753177846704,-1000.0,0.000233,2]
[374005843,1753177846714,-223.0315306,0.00023334,2]
[374005845,1753177846726,-151.0,0.00023334,7]
[374005847,1753177846736,-204.564135,0.00023334,7]
[374005849,1753177846745,-204.564135,0.00023334,7]
[374005851,1753177846754,-208.944323,0.00023334,7]
[374005852,1753177846763,-858.9029184,0.00023342,2]
[374005853,1753177846772,-429.6101251,0.00023342,2]
[374005854,1753177846782,-648.0,0.00023413,2]
[374005855,1753177846791,-2157.0,0.00023413,2]
[374005856,1753177846800,-968.0,0.00023413,2]
[374005858,1753177846810,-3301.13242443,0.00023417,9]
[374005860,1753177846819,-151.0,0.00023442,6]
[374005862,1753177846829,-2200.0,0.00023524,2]
[374005863,1753177846839,-151.0,0.00023524,7]
[374005865,1753177846849,-151.0,0.00023524,7]
[374005867,1753177846861,-154.473695,0.00023575,2]
[374005869,1753177846871,-495.3266742,0.00023616,2]
[374005871,1753177846881,-178.204927,0.00023616,2]
[374005873,1753177846890,-153.0,0.00023616,2]
[374005875,1753177846900,-159.8957685,0.00023616,2]
[374005877,1753177846909,-159.8957685,0.00023616,2]
[374005879,1753177846919,-178.204927,0.00023616,2]
[374005881,1753177846928,-178.204927,0.00023616,2]
[374005883,1753177846940,-153.0,0.00023616,2]
[374005885,1753177846950,-178.204927,0.00023616,2]
[374005887,1753177846959,-159.8957685,0.00023616,2]
[374005889,1753177846969,-577.4526085,0.00023616,2]
[374005891,1753177846979,-178.204927,0.00023616,2]
[374005893,1753177846988,-178.204927,0.00023616,2]
[374005895,1753177846998,-178.204927,0.00023616,2]
[374005897,1753177847008,-1154.905217,0.00023616,2]
[374005899,1753177847018,-159.8957685,0.00023616,2]
[374005901,1753177847027,-178.204927,0.00023616,2]
[374005903,1753177847037,-159.8957685,0.00023616,2]
[374005905,1753177847047,-451.87811,0.00023616,2]
[374005907,1753177847056,-1154.905217,0.00023616,2]
[374005909,1753177847066,-178.204927,0.00023616,2]
[374005910,1753177847075,-178.204927,0.00023616,2]
[374005912,1753177847085,-159.8957685,0.00023616,2]
[374005914,1753177847094,-178.204927,0.00023616,2]
[374005916,1753177847104,-159.8957685,0.00023616,2]
[374005918,1753177847116,-159.8957685,0.00023616,2]
[374005920,1753177847125,-178.204927,0.00023616,2]
[374005921,1753177847139,-176.5354086,0.00023616,2]
[374005922,1753177847149,-159.8957685,0.00023616,2]
[374005923,1753177847158,-159.8957685,0.00023616,2]
[374005924,1753177847168,-178.204927,0.00023616,2]
[374005925,1753177847178,-178.204927,0.00023616,2]
[374005926,1753177847187,-178.204927,0.00023616,2]
[374005927,1753177847196,-178.204927,0.00023616,2]
[374005928,1753177847205,-178.204927,0.00023616,2]
[374005929,1753177847216,-178.204927,0.00023616,2]
[374005930,1753177847226,-356.409854,0.00023616,2]
[374005931,1753177847235,-154.9988728,0.00023616,2]
[374005932,1753177847244,-154.473695,0.00023635,14]
[374005933,1753177847253,-500.0,0.0002365,2]
[374005934,1753177847262,-3301.13242443,0.00023693,9]
[374005935,1753177847272,-151.0,0.000237,5]
[374005936,1753177847281,-500.0,0.00023721,2]
[374005937,1753177847290,-151.0,0.00023721,2]
[374005938,1753177847299,-151.0,0.00023721,2]
[374005939,1753177847308,-500.0,0.00023721,2]
[374005940,1753177847318,-151.0,0.00023721,2]
[374005941,1753177847327,-168.0,0.00023743,2]
[374005942,1753177847337,-187.038938,0.00023744,2]
[374005943,1753177847346,-1000.0,0.000238,2]
[374005944,1753177847355,-154.473695,0.00023804,6]
[374005945,1753177847368,-150.0,0.00023873,2]
[374005946,1753177847377,-151.0,0.00023878,7]
[374005947,1753177847387,-1497.42724152,0.00023878,10]
[374005954,1753177847467,-2720.36275848,0.00023878,10]
[374005956,1753177847476,-3514.83,0.00023878,10]
[374005958,1753177847487,-284.51783004,0.00023878,10]
[374005960,1753177847499,-2644.50216996,0.00023878,10]
[374005962,1753177847508,-1687.16594455,0.00023878,10]
[374005964,1753177847519,-753.68405545,0.00023878,10]
[374005966,1753177847529,-168.0,0.0002388,2]
[374005968,1753177847539,-9211.52619071,0.00023888,2]
[374005998,1753177847819,-653.97,0.00017958,2]
[374006000,1753177847829,-653.97,0.00018232,2]
[374006002,1753177847838,-653.97,0.00018506,2]
[374006004,1753177847848,-653.97,0.0001878,2]
[374006006,1753177847857,-653.97,0.00019054,2]
[374006008,1753177847870,-653.97,0.00019328,2]
[374006010,1753177847879,-460.0,0.00019602,2]
[374006012,1753177847888,-653.97,0.00019602,2]
[374006014,1753177847898,-460.0,0.00019876,2]
[374006016,1753177847908,-653.97,0.00019876,2]
[374006018,1753177847917,-460.0,0.0002015,2]
[374006020,1753177847927,-653.97,0.0002015,2]
[374006022,1753177847941,-653.97,0.00020424,2]
[374006024,1753177847950,-214.6393183,0.0002066,3]
[374006026,1753177847960,-653.97,0.00020698,2]
[374006028,1753177847969,-653.97,0.00020972,2]
[374006030,1753177847978,-653.97,0.00021246,2]
[374006032,1753177847988,-653.97,0.0002152,2]
[374006034,1753177847997,-640.78067915,0.00021794,2]
[374006176,1753178041594,161.408051,0.00013699,2]
[374006177,1753178192970,5981.7859045,0.00016106,2]
[374006178,1753178312615,150.0,0.00013147,2]
[374006179,1753178313203,150.0,0.00014342,2]
[374006180,1753178313442,150.0,0.00015537,2]
[374006181,1753178381570,150.0,0.0001607,2]
[374006182,1753178446549,150.0,0.00016199,2]
[374006183,1753178535502,282.993199,0.00015971,2]
[374006184,1753178630008,8979.5649443,0.00015971,2]
[374006244,1753179032260,-353.79393509,0.00016857,2]
[374006246,1753179032272,-846.20606491,0.00016857,2]
[374006248,1753179032281,-300.0,0.00016858,2]
[374006250,1753179032291,-460.0,0.00016859,2]
[374006252,1753179032301,-300.0,0.00016859,2]
[374006254,1753179032312,-300.0,0.00016859,2]
[374006256,1753179032321,-300.0,0.00016859,2]
[374006258,1753179032331,-300.0,0.00016859,2]
[374006260,1753179032341,-460.0,0.0001686,2]
[374006262,1753179032350,-460.0,0.0001686,2]
[374006264,1753179032359,-460.0,0.0001686,2]
[374006266,1753179032369,-460.0,0.0001686,2]
[374006268,1753179032379,-448.1202017,0.0001686,2]
[374006270,1753179032388,-466.09698781,0.0001686,2]
[374006272,1753179032398,-460.0,0.0001686,2]
[374006273,1753179032407,-460.0,0.0001686,2]
[374006274,1753179032416,-523.53136242,0.0001686,2]
[374006275,1753179032428,-460.0,0.0001686,2]
[374006276,1753179032438,-394.87046588,0.0001686,2]
[374006278,1753179032448,-150.28164232,0.0001686,2]
[374006280,1753179032458,-460.0,0.0001686,2]
[374006282,1753179032467,-460.0,0.0001686,2]
[374006284,1753179032477,-460.0,0.0001686,2]
[374006286,1753179032486,-460.0,0.0001686,2]
[374006288,1753179032499,-460.0,0.0001686,2]
[374006290,1753179032509,-461.38792092,0.0001686,2]
[374006291,1753179032518,-601.45,0.0001686,2]
[374006293,1753179032528,-370.171953,0.0001686,2]
[374006295,1753179032538,-460.0,0.0001686,2]
[374006297,1753179032548,-460.0,0.0001686,2]
[374006299,1753179032557,-423.80307359,0.0001686,2]
[374006301,1753179032571,-36.19692641,0.0001686,2]
[374006303,1753179032581,-460.0,0.0001686,2]
[374006305,1753179032591,-460.0,0.0001686,2]
[374006307,1753179032601,-460.0,0.0001686,2]
[374006309,1753179032612,-460.0,0.0001686,2]
[374006312,1753179032623,-460.0,0.0001686,2]
[374006314,1753179032633,-460.0,0.0001686,2]
[374006315,1753179032642,-257.54228957,0.0001686,2]
[374006316,1753179032653,-463.01574741,0.0001686,2]
[374006318,1753179032662,-460.0,0.0001686,2]
[374006320,1753179032672,-460.0,0.0001686,2]
[374006322,1753179032684,-460.0,0.0001686,2]
[374006324,1753179032699,-460.51760103,0.0001686,2]
[374006326,1753179032708,-460.0,0.0001686,2]
[374006328,1753179032718,-239.59739498,0.0001686,2]
[374006330,1753179032728,-437.73982987,0.0001686,2]
[374006332,1753179032737,-617.81,0.0001686,2]
[374006334,1753179032747,-460.0,0.0001686,2]
[374006337,1753179032757,-485.34,0.0001686,2]
[374006339,1753179032767,-460.0,0.0001686,2]
[374006341,1753179032777,-569.13393687,0.0001686,2]
[374006343,1753179032786,-460.0,0.0001686,2]
[374006344,1753179032796,-480.02,0.0001686,2]
[374006345,1753179032805,-460.0,0.0001686,2]
[374006346,1753179032815,-460.0,0.0001686,2]
[374006347,1753179032825,-460.0,0.0001686,2]
[374006348,1753179032835,-582.74,0.0001686,2]
[374006349,1753179032845,-965.64,0.0001686,2]
[374006350,1753179032854,-460.0,0.0001686,2]
[374006351,1753179032864,-460.0,0.0001686,2]
[374006352,1753179032874,-460.0,0.0001686,2]
[374006353,1753179032884,-460.0,0.0001686,2]
[374006354,1753179032894,-460.0,0.0001686,2]
[374006355,1753179032904,-460.0,0.0001686,2]
[374006356,1753179032914,-460.0,0.0001686,2]
[374006357,1753179032926,-460.0,0.0001686,2]
[374006358,1753179032936,-460.0,0.0001686,2]
[374006359,1753179032946,-460.0,0.0001686,2]
[374006360,1753179032956,-287.50273417,0.0001686,2]
[374006361,1753179032966,-460.0,0.0001686,2]
[374006362,1753179032975,-460.0,0.0001686,2]
[374006363,1753179032985,-460.0,0.0001686,2]
[374006364,1753179032995,-460.0,0.0001686,2]
[374006365,1753179033004,-460.0,0.0001686,2]
[374006366,1753179033014,-460.0,0.0001686,2]
[374006367,1753179033025,-460.0,0.00016861,2]
[374006368,1753179033035,-460.0,0.00016861,2]